bitfinex/quotes_BTCUSD_20250714
["timestamp","ask_amount","ask_price","bid_price","bid_amount"]
[1752506781895,2.2893294,120310.0,120300.0,0.01647601]
[1752506782147,2.2913294,120310.0,120300.0,0.01647601]
[1752506783178,2.2943294,120310.0,120300.0,0.00816642]
[1752506783590,1.11897488,120290.0,120280.0,0.06626138]
[1752506783796,1.46504199,120290.0,120280.0,0.06626138]
[1752506784524,1.46504199,120290.0,120280.0,0.09916138]
[1752506785385,0.99699997,120290.0,120280.0,0.09916138]
[1752506787038,0.99699997,120290.0,120280.0,0.13236138]
[1752506787469,0.90733997,120290.0,120280.0,0.13236138]
[1752506788325,0.89902687,120290.0,120280.0,0.13236138]
[1752506788564,1.36706889,120290.0,120280.0,0.09916138]
[1752506789221,0.89902687,120290.0,120280.0,0.09916138]
[1752506789915,1.36706889,120290.0,120280.0,0.09916138]
[1752506790363,0.89902687,120290.0,120280.0,0.09916138]
[1752506794932,0.43098485,120290.0,120280.0,0.09916138]
[1752506795145,0.89902687,120290.0,120280.0,0.13066138]
[1752506795378,0.88905728,120290.0,120280.0,0.14620581]
[1752506795816,0.90568341,120290.0,120280.0,0.14620581]
[1752506796034,0.92396547,120290.0,120280.0,0.14620581]
[1752506796268,0.92396624,120290.0,120280.0,0.14620581]
[1752506796481,0.92396624,120290.0,120280.0,0.14620511]
[1752506796695,0.90734011,120290.0,120280.0,0.14620513]
[1752506796916,1.45672924,120290.0,120280.0,0.11470513]
[1752506798448,0.98868722,120290.0,120280.0,0.11470513]
[1752506798652,1.45672924,120290.0,120280.0,0.11470513]
[1752506799500,0.98868722,120290.0,120280.0,0.11470513]
[1752506800567,0.74938746,120290.0,120280.0,0.14710513]
[1752506800791,0.915653,120290.0,120280.0,0.14710513]
[1752506801673,1.38369502,120290.0,120280.0,0.11470513]
[1752506801902,1.38369502,120290.0,120280.0,0.08180513]
[1752506802334,1.38369502,120290.0,120280.0,0.08180854]
[1752506802758,0.915653,120290.0,120280.0,0.08180854]
[1752506803189,1.38369502,120290.0,120280.0,0.08180854]
[1752506803394,1.46504213,120290.0,120280.0,0.08180854]
[1752506804657,1.49624213,120290.0,120280.0,0.08180854]
[1752506805071,1.49624213,120290.0,120280.0,0.06626138]
[1752506805323,1.49624213,120290.0,120280.0,0.08181382]
[1752506805538,1.48627213,120290.0,120280.0,0.08181382]
[1752506805758,1.48627213,120290.0,120280.0,0.08181598]
[1752506806668,0.98703011,120290.0,120280.0,0.08181598]
[1752506806926,0.98703011,120290.0,120280.0,0.11281598]
[1752506807842,0.18290598,120280.0,120270.0,0.11491854]
[1752506808064,0.915228,120280.0,120270.0,0.11491854]
[1752506808530,1.38327002,120280.0,120270.0,0.11491854]
[1752506808765,1.37495651,120280.0,120270.0,0.11491854]
[1752506809004,1.37495651,120280.0,120270.0,0.11591854]
[1752506809498,1.37495651,120280.0,120270.0,0.08431854]
[1752506810147,1.39354067,120280.0,120270.0,0.08431854]
[1752506810775,1.47488778,120280.0,120270.0,0.08431854]
[1752506817366,1.50498778,120280.0,120270.0,0.08431854]
[1752506817590,1.54929535,120280.0,120270.0,0.08431854]
[1752506817795,1.53678778,120280.0,120270.0,0.08431854]
[1752506819820,1.53678778,120280.0,120270.0,0.09987862]
[1752506821506,1.47488778,120280.0,120270.0,0.09987862]
[1752506821759,1.47488778,120280.0,120270.0,0.09987519]
[1752506822244,1.47488778,120280.0,120270.0,0.09887519]
[1752506822922,1.46491659,120280.0,120270.0,0.09887519]
[1752506823628,1.54195744,120280.0,120270.0,0.09887519]
[1752506824552,1.54195744,120280.0,120270.0,0.09887019]
[1752506825188,1.51175744,120280.0,120270.0,0.09887019]
[1752506827546,1.46491659,120280.0,120270.0,0.09887019]
[1752506827995,0.52883255,120280.0,120270.0,0.09887019]
[1752506828217,0.99687457,120280.0,120270.0,0.16477019]
[1752506828433,0.98856078,120280.0,120270.0,0.16477019]
[1752506828662,1.4566028,120280.0,120270.0,0.16477019]
[1752506828872,0.75090618,120280.0,120270.0,0.16477019]
[1752506829087,0.76753328,120280.0,120270.0,0.16477019]
[1752506829289,0.75921963,120280.0,120270.0,0.16477019]
[1752506829506,0.76753314,120280.0,120270.0,0.16477019]
[1752506829719,0.77584679,120280.0,120270.0,0.16477019]
[1752506829926,0.95043926,120280.0,120270.0,0.16477019]
[1752506830138,0.01858416,120280.0,120270.0,0.16577019]
[1752506830350,0.47635547,120280.0,120270.0,0.16576487]
[1752506830771,0.65926131,120280.0,120270.0,0.16576487]
[1752506831014,1.3827903,120280.0,120270.0,0.16576476]
[1752506831228,1.37447658,120280.0,120270.0,0.16576476]
[1752506831448,1.37447658,120280.0,120270.0,0.13286476]
[1752506831870,1.37447658,120280.0,120270.0,0.09986476]
[1752506832317,1.3933161,120280.0,120270.0,0.09986476]
[1752506834256,1.50496321,120280.0,120270.0,0.09986476]
[1752506835777,1.47466321,120280.0,120270.0,0.09986476]
[1752506836654,0.76730857,120280.0,120270.0,0.16226476]
[1752506836856,0.77562236,120280.0,120270.0,0.16226476]
[1752506837073,0.78393629,120280.0,120270.0,0.16226476]
[1752506837281,0.78393622,120280.0,120270.0,0.16226476]
[1752506837529,0.77562229,120280.0,120270.0,0.16226476]
[1752506837756,0.9502149,120280.0,120270.0,0.16226476]
[1752506837966,0.78393622,120280.0,120270.0,0.16226476]
[1752506838180,0.78393615,120280.0,120270.0,0.16226476]
[1752506838415,0.95021531,120280.0,120270.0,0.16226476]
[1752506838642,0.94190173,120280.0,120270.0,0.16226476]
[1752506838869,0.94190173,120280.0,120270.0,0.14671854]
[1752506839108,0.94190173,120280.0,120270.0,0.16226823]
[1752506841865,0.9335878,120280.0,120270.0,0.16226823]
[1752506842287,0.95021441,120280.0,120270.0,0.16226823]
[1752506843010,0.9419011,120280.0,120270.0,0.16226823]
[1752506843450,0.93358794,120280.0,120270.0,0.09986823]
[1752506843691,1.40162996,120280.0,120270.0,0.09986823]
[1752506843915,1.51547707,120280.0,120270.0,0.09986823]
[1752506844814,1.48297707,120280.0,120270.0,0.09986823]
[1752506845039,1.01493505,120280.0,120270.0,0.09986823]
[1752506845696,0.48688154,120280.0,120270.0,0.09986823]
[1752506845914,0.01883952,120280.0,120270.0,0.16186823]
[1752506846127,0.48466739,120290.0,120270.0,0.29358823]
[1752506846345,0.48466733,120290.0,120280.0,0.0616]
[1752506846564,0.50129304,120290.0,120280.0,0.07714969]
[1752506846771,0.46804202,120290.0,120280.0,0.07714519]
[1752506846985,0.46804202,120290.0,120280.0,0.20886519]
[1752506847199,0.47635477,120290.0,120280.0,0.0616]
[1752506847417,0.48466773,120290.0,120280.0,0.19332]
[1752506847657,0.47635464,120290.0,120280.0,0.19332]
[1752506847879,0.46804202,120290.0,120280.0,0.19332]
[1752506848319,0.49450704,120290.0,120280.0,0.19332]
[1752506848541,0.0181524,120290.0,120280.0,0.19332]
[1752506848749,0.47635471,120290.0,120280.0,0.19332]
[1752506848955,0.47635464,120290.0,120280.0,0.19332]
[1752506849242,0.46804202,120290.0,120280.0,0.19332]
[1752506849440,0.47635471,120290.0,120280.0,0.19332]
[1752506849656,0.46804202,120290.0,120280.0,0.19332]
[1752506850298,0.47635477,120290.0,120280.0,0.19332]
[1752506850675,0.46804202,120290.0,120280.0,0.19332]
[1752506850894,0.10663455,120310.0,120280.0,0.19328]
[1752506851098,0.63223498,120310.0,120300.0,0.0315]
[1752506851303,0.54257636,120310.0,120300.0,0.0637]
[1752506851460,0.54257615,120310.0,120300.0,0.19538]
[1752506851682,0.5857321,120310.0,120300.0,0.0637]
[1752506851874,0.75196981,120310.0,120300.0,0.0315]
[1752506852091,0.57742073,120310.0,120300.0,0.0315]
[1752506852307,0.84779409,120310.0,120300.0,0.13164]
[1752506853175,0.83948244,120310.0,120300.0,0.13164]
[1752506853473,0.0166244,120300.0,120290.0,0.0318]
[1752506853662,0.49297835,120300.0,120290.0,0.19634]
[1752506853861,0.50129083,120300.0,120290.0,0.0647]
[1752506854058,0.49297835,120300.0,120290.0,0.16344]
[1752506854510,0.50129076,120300.0,120290.0,0.16344]
[1752506854878,0.50129076,120300.0,120290.0,0.0318]
[1752506855256,0.65922938,120300.0,120290.0,0.0318]
[1752506855471,0.01662585,120290.0,120280.0,0.0639]
[1752506855649,0.48466759,120290.0,120280.0,0.163]
[1752506855877,0.47635471,120290.0,120280.0,0.163]
[1752506856035,0.46638641,120290.0,120280.0,0.1956]
[1752506856211,0.48301226,120290.0,120280.0,0.1956]
[1752506856418,0.47469923,120290.0,120280.0,0.064]
[1752506856624,0.47469923,120290.0,120280.0,0.1976]
[1752506856848,0.46638641,120290.0,120280.0,0.1986]
[1752506857472,0.47469923,120290.0,120280.0,0.1986]
[1752506857676,0.46638634,120290.0,120280.0,0.1986]
[1752506857838,0.45807372,120290.0,120280.0,0.1986]
[1752506858183,0.47635464,120290.0,120280.0,0.1986]
[1752506858592,0.46804202,120290.0,120280.0,0.1986]
[1752506858802,0.00831269,120290.0,120280.0,0.067]
[1752506858998,0.46804202,120290.0,120280.0,0.19856]
[1752506859492,0.48466753,120290.0,120280.0,0.19856]
[1752506859702,0.47635464,120290.0,120280.0,0.19856]
[1752506860116,0.49298049,120290.0,120280.0,0.067]
[1752506860331,0.79598025,120290.0,120280.0,0.003]
[1752506860559,0.99325137,120290.0,120280.0,0.003]
[1752506862018,0.99325137,120290.0,120280.0,0.01854013]
[1752506862729,0.86169137,120290.0,120280.0,0.01854013]
[1752506862979,1.00983681,120290.0,120280.0,0.01854013]
[1752506863195,0.47635464,120290.0,120280.0,0.01854013]
[1752506863406,0.4929809,120290.0,120280.0,0.01854013]
[1752506863624,0.65924575,120290.0,120280.0,0.15006013]
[1752506863843,0.49298083,120290.0,120280.0,0.15006013]
[1752506864045,0.65924568,120290.0,120280.0,0.15006013]
[1752506864250,0.66755885,120290.0,120280.0,0.15006013]
[1752506864463,0.66755885,120290.0,120280.0,0.01854013]
[1752506864699,0.65093314,120290.0,120280.0,0.15006013]
[1752506864904,0.68173314,120290.0,120280.0,0.01854013]
[1752506865125,0.78766715,120290.0,120280.0,0.01854013]
[1752506865591,0.91918715,120290.0,120280.0,0.01854013]
[1752506866004,0.91918715,120290.0,120280.0,0.01754013]
[1752506866443,0.91918715,120290.0,120280.0,0.01554013]
[1752506866885,0.92018715,120290.0,120280.0,0.01554013]
[1752506868598,0.02494048,120280.0,120270.0,0.55479854]
[1752506868805,0.55604654,120280.0,120270.0,0.57034332]
[1752506869046,0.57267364,120280.0,120270.0,0.57034332]
[1752506869305,0.57267364,120280.0,120270.0,0.43886332]
[1752506869557,0.56435999,120280.0,120270.0,0.57034332]
[1752506869782,0.46804202,120280.0,120270.0,0.55475854]
[1752506870013,0.60048202,120290.0,120270.0,0.61705854]
[1752506870223,0.60779471,120290.0,120280.0,0.0321]
[1752506870436,0.59948202,120290.0,120280.0,0.0321]
[1752506870954,0.46804202,120290.0,120280.0,0.0321]
[1752506871178,0.46804202,120300.0,120280.0,0.065]
[1752506871390,0.46804202,120300.0,120290.0,0.0656]
[1752506871814,0.46804202,120300.0,120290.0,0.19704]
[1752506872034,0.46804202,120300.0,120290.0,0.0656]
[1752506872257,0.1745776,120290.0,120280.0,0.0656]
[1752506872474,0.00831269,120290.0,120280.0,0.0327]
[1752506872686,0.48466746,120290.0,120280.0,0.16414]
[1752506872902,0.48466746,120290.0,120280.0,0.17968609]
[1752506873378,0.46804202,120290.0,120280.0,0.17968765]
[1752506873816,0.47635464,120290.0,120280.0,0.04824765]
[1752506874036,0.48466733,120290.0,120280.0,0.17964765]
[1752506874249,0.49298015,120290.0,120280.0,0.17964765]
[1752506874702,0.48466733,120290.0,120280.0,0.17964765]
[1752506874916,0.49298008,120290.0,120280.0,0.17964765]
[1752506875127,0.5012929,120290.0,120280.0,0.17964765]
[1752506875313,0.50960579,120290.0,120280.0,0.17964765]
[1752506875555,0.48466746,120290.0,120280.0,0.18064765]
[1752506875768,0.69985871,120290.0,120280.0,0.01654765]
[1752506875977,0.69985871,120290.0,120280.0,0.14794765]
[1752506876396,0.69154596,120290.0,120280.0,0.14794765]
[1752506876617,0.50865464,120290.0,120280.0,0.14794765]
[1752506876843,0.46804202,120290.0,120280.0,0.14794765]
[1752506877062,0.46804202,120290.0,120280.0,0.04934765]
[1752506877306,0.46804202,120300.0,120280.0,0.0666]
[1752506877520,0.46804202,120300.0,120290.0,0.13136]
[1752506877736,0.5691088,120310.0,120290.0,0.20931204]
[1752506877960,0.46804202,120300.0,120290.0,0.20931204]
[1752506878620,0.47635395,120300.0,120290.0,0.20931204]
[1752506878831,0.4746983,120300.0,120290.0,0.01555204]
[1752506879043,0.4746983,120300.0,120290.0,0.14691204]
[1752506879262,0.46738631,120300.0,120290.0,0.14691204]
[1752506879485,0.64194947,120300.0,120290.0,0.14691204]
[1752506879711,0.46738631,120300.0,120290.0,0.14691204]
[1752506879921,0.45907438,120300.0,120290.0,0.14691204]
[1752506880316,0.45907438,120300.0,120290.0,0.21051204]
[1752506880539,0.46904202,120300.0,120290.0,0.21051204]
[1752506881239,0.65191794,120300.0,120290.0,0.21051204]
[1752506881459,0.46904202,120300.0,120290.0,0.21051204]
[1752506882362,0.47735395,120300.0,120290.0,0.07915204]
[1752506882578,0.46904202,120300.0,120290.0,0.21047204]
[1752506882794,0.47735395,120300.0,120290.0,0.21047204]
[1752506883012,0.46904202,120300.0,120290.0,0.21047204]
[1752506883867,0.48566621,120300.0,120290.0,0.21047204]
[1752506884088,0.48566614,120300.0,120290.0,0.17727204]
[1752506884314,0.69994227,120300.0,120290.0,0.14687204]
[1752506884537,0.72383014,120300.0,120290.0,0.14687204]
[1752506884742,0.72383014,120300.0,120290.0,0.01555204]
[1752506884974,0.72383014,120300.0,120290.0,0.14687204]
[1752506885189,0.17457771,120290.0,120270.0,0.14651854]
[1752506885405,0.46804202,120290.0,120280.0,0.13132]
[1752506885579,0.46804202,120290.0,120280.0,0.14687229]
[1752506886178,0.47635471,120290.0,120280.0,0.14687229]
[1752506886373,0.46804202,120290.0,120280.0,0.14687229]
[1752506886579,0.64261962,120290.0,120280.0,0.14687229]
[1752506886777,0.65093251,120290.0,120280.0,0.48687229]
[1752506886983,0.65093251,120290.0,120280.0,0.35555229]
[1752506887179,0.75536687,120290.0,120280.0,0.01555229]
[1752506887406,0.79587997,120290.0,120280.0,0.01555229]
[1752506887563,0.92715997,120290.0,120280.0,0.01555229]
[1752506887762,0.45911795,120290.0,120280.0,0.01555229]
[1752506888016,0.32783754,120290.0,120280.0,0.01555229]
[1752506888221,0.77199252,120290.0,120280.0,0.01555229]
[1752506888477,0.47635471,120290.0,120280.0,0.01555229]
[1752506888682,0.3717433,120300.0,120280.0,0.14683229]
[1752506888898,0.54938913,120300.0,120280.0,0.21103229]
[1752506889105,0.45617496,120310.0,120280.0,0.21103229]
[1752506889311,0.11768994,120310.0,120290.0,0.0642]
[1752506889512,0.28392814,120310.0,120300.0,0.13128]
[1752506889742,0.76028195,120310.0,120300.0,0.13128]
[1752506889943,0.01662412,120300.0,120290.0,0.0642]
[1752506890145,0.66754178,120300.0,120290.0,0.13128]
[1752506890344,0.48466614,120300.0,120290.0,0.13128]
[1752506890642,0.00831199,120300.0,120290.0,0.13128]
[1752506890842,0.46804202,120300.0,120290.0,0.13128]
[1752506891064,0.00831193,120300.0,120290.0,0.13128]
[1752506891352,0.21371417,120310.0,120290.0,0.12128]
[1752506891596,0.00831199,120300.0,120280.0,0.37]
[1752506891807,0.46804202,120300.0,120290.0,0.13128]
[1752506892026,0.47635401,120300.0,120290.0,0.13128]
[1752506892441,0.50129075,120300.0,120290.0,0.13132]
[1752506892654,0.49297834,120300.0,120290.0,0.13132]
[1752506892861,0.50129061,120300.0,120290.0,0.13132]
[1752506893069,0.50229096,120300.0,120290.0,0.13132]
[1752506893276,0.48566608,120300.0,120290.0,4e-05]
[1752506893485,0.49397828,120300.0,120290.0,0.13132]
[1752506893915,0.02593626,120300.0,120290.0,0.13132]
[1752506894122,0.49397828,120300.0,120290.0,0.13132]
[1752506894334,0.47735395,120300.0,120290.0,0.13132]
[1752506894546,0.49397814,120300.0,120290.0,0.13132]
[1752506894785,0.50229041,120300.0,120290.0,0.13132]
[1752506894998,0.001,120300.0,120290.0,0.13132]
[1752506895223,0.46904202,120300.0,120290.0,0.13132]
[1752506896192,0.001,120300.0,120290.0,4e-05]
[1752506896418,0.001,120300.0,120290.0,0.19562]
[1752506896644,0.001,120300.0,120290.0,0.87238202]
[1752506896872,0.001,120300.0,120290.0,1.00366202]
[1752506897091,0.001,120300.0,120290.0,0.53562]
[1752506897328,0.001,120300.0,120290.0,0.61696711]
[1752506897549,0.001,120300.0,120290.0,1.08500913]
[1752506897797,0.001,120300.0,120290.0,0.95372913]
[1752506898026,0.001,120300.0,120290.0,0.61696711]
[1752506898714,0.08444411,120310.0,120300.0,0.0608]
[1752506898946,0.00051178,120310.0,120300.0,1.92883784]
[1752506899168,0.00051178,120310.0,120300.0,1.62091613]
[1752506899395,0.00051178,120310.0,120300.0,0.61342711]
[1752506899646,0.00051178,120310.0,120300.0,0.74124411]
[1752506899853,0.00051178,120310.0,120300.0,1.20928613]
[1752506900063,0.00051178,120310.0,120300.0,1.21228613]
[1752506900294,0.00051178,120310.0,120300.0,0.74424411]
[1752506900711,0.00051178,120310.0,120300.0,0.61296411]
[1752506900922,0.00051178,120310.0,120300.0,0.74620411]
[1752506901135,0.00051178,120310.0,120300.0,1.21424613]
[1752506901362,0.00051178,120310.0,120300.0,0.92076755]
[1752506901600,0.00051178,120310.0,120300.0,1.40543383]
[1752506901829,0.00051178,120310.0,120300.0,1.27419383]
[1752506902057,0.00051178,120310.0,120300.0,0.93739181]
[1752506902289,0.00051178,120310.0,120300.0,1.40543383]
[1752506902511,0.00051178,120310.0,120300.0,1.25756957]
[1752506902747,0.00051178,120310.0,120300.0,1.60832813]
[1752506902996,0.00051178,120310.0,120300.0,1.82597516]
[1752506903232,0.00051178,120310.0,120300.0,0.77260411]
[1752506903478,0.00051178,120310.0,120300.0,0.83407411]
[1752506903748,0.00051178,120310.0,120300.0,0.61838711]
[1752506903971,0.0662229,120310.0,120300.0,0.0357]
[1752506904242,0.0662229,120310.0,120300.0,0.16694]
[1752506904667,0.05625734,120310.0,120300.0,0.1824659]
[1752506904895,0.04629177,120310.0,120300.0,0.1824659]
[1752506905326,0.04629177,120310.0,120300.0,0.02052655]
[1752506905554,0.04629177,120310.0,120300.0,0.15176655]
[1752506905770,0.23746331,120310.0,120300.0,0.02052655]
[1752506906006,0.69719368,120310.0,120300.0,0.02052655]
[1752506906255,0.74391747,120310.0,120300.0,0.15180655]
[1752506906479,0.73560603,120310.0,120300.0,0.02052655]
[1752506906733,0.73560603,120310.0,120300.0,0.15180655]
[1752506906947,0.72729424,120310.0,120300.0,0.15180655]
[1752506907168,0.25925222,120310.0,120300.0,0.15180655]
[1752506907444,0.09301458,120310.0,120300.0,0.02052655]
[1752506907675,0.04629177,120310.0,120300.0,0.15180519]
[1752506907886,0.06291444,120310.0,120300.0,0.15192548]
[1752506908099,0.04629177,120310.0,120300.0,0.15192548]
[1752506908320,0.04629177,120310.0,120300.0,0.01852526]
[1752506908533,0.04629177,120310.0,120300.0,0.14988526]
[1752506908782,0.04629177,120310.0,120300.0,0.14688526]
[1752506909003,0.04629177,120310.0,120300.0,0.01552526]
[1752506909222,0.04629177,120310.0,120300.0,0.14688526]
[1752506909667,0.05460314,120310.0,120300.0,0.14688526]
[1752506910108,0.04629177,120310.0,120300.0,0.14688526]
[1752506910324,0.05460307,120310.0,120300.0,0.14688526]
[1752506911465,0.24577524,120310.0,120300.0,0.01552526]
[1752506911679,0.74423375,120310.0,120300.0,0.14684526]
[1752506911894,0.74423368,120310.0,120300.0,0.14684526]
[1752506912113,0.76612189,120310.0,120300.0,0.14684526]
[1752506912346,0.59988467,120310.0,120300.0,0.01552526]
[1752506912568,0.06291458,120310.0,120300.0,0.14680526]
[1752506912793,0.06291451,120310.0,120300.0,0.14680526]
[1752506913273,0.24577496,120310.0,120300.0,0.14680526]
[1752506913517,0.07953767,120310.0,120300.0,0.14680526]
[1752506913763,0.06291451,120310.0,120300.0,0.01552526]
[1752506914039,0.04629177,120310.0,120300.0,0.14676526]
[1752506914284,0.04629177,120310.0,120300.0,0.01552526]
[1752506914533,0.05460307,120310.0,120300.0,0.01552526]
[1752506914763,0.04629177,120310.0,120300.0,0.01552526]
[1752506914982,0.0363252,120310.0,120300.0,0.01552974]
[1752506915643,0.0363252,120310.0,120290.0,0.13335831]
[1752506917053,0.5829068,120310.0,120300.0,0.13124]
[1752506917274,0.59121852,120310.0,120290.0,0.13535831]
[1752506917502,0.59953038,120310.0,120290.0,0.13535831]
[1752506917725,0.58290638,120310.0,120290.0,0.00411831]
[1752506917973,0.0363252,120310.0,120290.0,0.06811831]
[1752506918187,0.0363252,120310.0,120300.0,0.13124]
[1752506918848,0.0363252,120310.0,120290.0,0.06404]
[1752506919096,0.0363252,120310.0,120300.0,0.13124]
[1752506919286,0.06125931,120310.0,120300.0,0.13124]
[1752506919514,0.06957089,120310.0,120300.0,0.05]
[1752506919879,0.0446365,120310.0,120300.0,0.05]
[1752506920098,0.05294794,120310.0,120300.0,0.05]
[1752506920304,0.06125952,120310.0,120300.0,0.05]
[1752506920529,0.22749674,120310.0,120300.0,0.05]
[1752506920723,0.72595567,120310.0,120300.0,0.05]
[1752506920933,0.55140673,120310.0,120300.0,0.05]
[1752506921143,0.04463643,120310.0,120300.0,0.05]
[1752506921341,0.54309494,120310.0,120300.0,0.05]
[1752506921552,0.04463643,120310.0,120300.0,0.05]
[1752506921756,0.05294773,120310.0,120300.0,0.05]
[1752506921953,0.53478371,120310.0,120300.0,0.05]
[1752506922447,0.0363252,120310.0,120300.0,0.05]
[1752506922719,0.54099507,120320.0,120300.0,0.18124]
[1752506922903,0.54099507,120320.0,120300.0,0.74642498]
[1752506922904,0.04253656,120320.0,120300.0,0.74642498]
[1752506923198,0.04253656,120320.0,120300.0,0.19653209]
[1752506923431,0.51507987,120320.0,120310.0,0.13124]
[1752506923655,0.51507987,120320.0,120300.0,0.21432498]
[1752506923656,0.01662122,120320.0,120300.0,0.21432498]
[1752506923920,0.81931058,120330.0,120310.0,0.13124]
[1752506924151,0.00831054,120320.0,120310.0,0.13124]
[1752506924388,0.50676905,120320.0,120310.0,0.13124]
[1752506924872,0.50676905,120320.0,120300.0,0.08308498]
[1752506924873,0.51508008,120320.0,120300.0,0.08308498]
[1752506925102,0.69669093,120320.0,120300.0,0.18132498]
[1752506925341,0.74746732,120320.0,120300.0,0.18132498]
[1752506925572,0.75577849,120320.0,120300.0,0.18132498]
[1752506925775,0.74746774,120320.0,120300.0,0.05008498]
[1752506926056,0.58910381,120310.0,120300.0,0.05008498]
[1752506926310,0.62160423,120310.0,120300.0,0.05008498]
[1752506926537,0.572481,120310.0,120300.0,0.05008498]
[1752506926804,0.56416963,120310.0,120300.0,0.05008498]
[1752506927034,0.57610385,120310.0,120300.0,0.05008498]
[1752506927497,0.58441515,120310.0,120300.0,0.05008498]
[1752506927687,0.58441508,120310.0,120300.0,0.05008498]
[1752506927942,0.60103789,120310.0,120300.0,0.05008498]
[1752506928162,0.7993756,120310.0,120300.0,0.05008498]
[1752506928411,0.63313831,120310.0,120300.0,0.05008498]
[1752506929062,0.80693725,120310.0,120300.0,0.05008498]
[1752506929287,0.62407666,120310.0,120300.0,0.05008498]
[1752506929494,0.57535385,120310.0,120300.0,0.05008498]
[1752506929705,0.75821402,120310.0,120300.0,0.05008498]
[1752506929918,0.75821402,120310.0,120300.0,0.18132498]
[1752506929919,0.59197673,120310.0,120300.0,0.18132498]
[1752506930146,0.58366522,120310.0,120300.0,0.18132498]
[1752506930576,0.58366515,120310.0,120300.0,0.18132498]
[1752506930787,0.76652539,120310.0,120300.0,0.05008498]
[1752506931005,0.59197659,120310.0,120300.0,0.05008498]
[1752506931235,0.58366515,120310.0,120300.0,0.05008498]
[1752506932158,0.77483711,120310.0,120300.0,0.05008498]
[1752506932379,0.59197652,120310.0,120300.0,0.05008498]
[1752506932599,0.092145,120320.0,120300.0,0.05008498]
[1752506932823,0.51039273,120310.0,120300.0,0.19895622]
[1752506933049,0.51039273,120310.0,120300.0,0.19687809]
[1752506933314,0.67662995,120310.0,120300.0,0.06563809]
[1752506933533,0.5270154,120310.0,120300.0,0.06563809]
[1752506933974,0.51870396,120310.0,120300.0,0.05008498]
[1752506934191,0.53532677,120310.0,120300.0,0.06563908]
[1752506934435,0.54363835,120310.0,120300.0,0.06563908]
[1752506934669,0.54363835,120310.0,120300.0,0.06563986]
[1752506934858,0.01496729,120310.0,120300.0,0.05008498]
[1752506935100,0.77393117,120310.0,120300.0,0.05008498]
[1752506935325,0.80723159,120310.0,120300.0,0.18132498]
[1752506935767,0.64099437,120310.0,120300.0,0.18132498]
[1752506935992,0.11397841,120310.0,120300.0,0.18132498]
[1752506936211,0.61771515,120310.0,120300.0,0.18132498]
[1752506936423,0.62602652,120310.0,120300.0,0.18132498]
[1752506937054,0.59272652,120310.0,120300.0,0.18132498]
[1752506937454,0.58441515,120310.0,120300.0,0.18132498]
[1752506937840,0.59272659,120310.0,120300.0,0.18132498]
[1752506938036,0.58441515,120310.0,120300.0,0.18132498]
[1752506938238,0.09174486,120320.0,120300.0,0.05008498]
[1752506938449,0.5533163,120320.0,120310.0,0.1312]
[1752506938717,0.5533163,120320.0,120300.0,0.11248498]
[1752506938929,0.56162684,120320.0,120300.0,0.19591022]
[1752506939139,0.56993745,120320.0,120300.0,0.19383209]
[1752506939345,0.5782482,120320.0,120310.0,0.1312]
[1752506939563,0.00831137,120310.0,120300.0,0.05008498]
[1752506939764,0.51870403,120310.0,120300.0,0.18128498]
[1752506940133,0.52701554,120310.0,120300.0,0.18128498]
[1752506940326,0.51870403,120310.0,120300.0,0.18128498]
[1752506940688,0.5579154,120310.0,120300.0,0.18128498]
[1752506940942,0.58285028,120310.0,120300.0,0.18128498]
[1752506941154,0.51039273,120310.0,120300.0,0.24318498]
[1752506941642,0.5543163,120320.0,120300.0,0.32453209]
[1752506941865,0.51870396,120310.0,120300.0,0.18128498]
[1752506942091,0.51039273,120310.0,120300.0,0.18128498]
[1752506942325,0.51870396,120310.0,120300.0,0.18128498]
[1752506942549,0.51039273,120310.0,120300.0,0.18128498]
[1752506942783,0.51870403,120310.0,120300.0,0.18128498]
[1752506942976,0.51039273,120310.0,120300.0,0.18128498]
[1752506943537,0.51039273,120310.0,120300.0,0.05008498]
[1752506943753,0.04292357,120320.0,120300.0,0.32821022]
[1752506943962,0.54238326,120330.0,120300.0,0.19493209]
[1752506944181,0.54238326,120330.0,120310.0,0.0631]
[1752506944182,0.7506239,120330.0,120310.0,0.0631]
[1752506944395,0.51039273,120320.0,120310.0,0.0631]
[1752506944611,0.70154859,120320.0,120310.0,0.1312]
[1752506944828,0.50873714,120320.0,120310.0,0.1312]
[1752506945045,0.00831054,120320.0,120310.0,0.1312]
[1752506945265,0.51870327,120320.0,120310.0,0.1312]
[1752506945474,0.54406866,120320.0,120310.0,0.1312]
[1752506945693,0.52744744,120320.0,120310.0,0.1312]
[1752506945924,0.00831123,120310.0,120300.0,0.47143209]
[1752506946147,0.00831123,120310.0,120300.0,0.18128498]
[1752506946148,0.52701533,120310.0,120300.0,0.18128498]
[1752506946384,0.51870396,120310.0,120300.0,0.18128498]
[1752506946830,0.51039273,120310.0,120300.0,0.18128498]
[1752506947493,0.51039273,120310.0,120300.0,0.24708498]
[1752506949324,0.51039273,120310.0,120300.0,0.39644768]
[1752506949536,0.51870417,120310.0,120300.0,0.36384768]
[1752506949741,0.5270154,120310.0,120300.0,0.36384768]
[1752506949915,0.52701526,120310.0,120300.0,0.36384768]
[1752506950156,0.52701526,120310.0,120300.0,0.21448498]
[1752506950574,0.51870396,120310.0,120300.0,0.21448498]
[1752506950792,0.51039273,120310.0,120300.0,0.21448498]
[1752506950979,0.5270154,120310.0,120300.0,0.21448498]
[1752506951181,0.51039273,120310.0,120300.0,0.21448498]
[1752506951618,0.51039273,120310.0,120300.0,0.36384768]
[1752506951842,0.08401747,120320.0,120300.0,0.36384768]
[1752506952060,0.51039273,120310.0,120300.0,0.26424768]
[1752506952276,0.51039273,120310.0,120300.0,0.39544768]
[1752506952921,0.57778786,120320.0,120300.0,0.39544768]
[1752506953143,0.56947704,120320.0,120300.0,0.39544768]
[1752506953362,0.58609924,120320.0,120300.0,0.39544768]
[1752506953598,0.57778793,120320.0,120300.0,0.26424768]
[1752506953817,0.56116636,120320.0,120310.0,0.1312]
[1752506954041,0.56947704,120320.0,120310.0,0.1312]
[1752506954279,0.56116636,120320.0,120310.0,0.1312]
[1752506954503,0.75232264,120320.0,120300.0,0.26424768]
[1752506954726,0.57778807,120320.0,120300.0,0.47679479]
[1752506954976,0.559511,120320.0,120300.0,0.47679479]
[1752506955204,0.55120025,120320.0,120300.0,0.47679479]
[1752506955418,0.55120025,120320.0,120310.0,0.1312]
[1752506955867,0.559511,120320.0,120310.0,0.1312]
[1752506956090,0.54288971,120320.0,120310.0,0.4035]
[1752506956327,0.54288971,120320.0,120310.0,0.5347]
[1752506956756,0.54388971,120320.0,120310.0,0.5045]
[1752506956967,0.03449698,120320.0,120310.0,0.5545]
[1752506957180,0.56982238,120320.0,120310.0,0.5545]
[1752506957400,0.55320039,120320.0,120310.0,0.5545]
[1752506957612,0.54488971,120320.0,120310.0,0.5212]